[Event "1000 GM Labor Day Super Swiss 2024"]
[Site "San Jose"]
[Date "2024.09.01"]
[Round "3.1"]
[White "Sheng, Joshua"]
[Black "Yoo, Christopher Woojin"]
[Result "1/2-1/2"]
[Annotator "TA"]
[ECO "B22"]
[WhiteElo "2474"]
[BlackElo "2616"]
[PlyCount "23"]
[EventDate "2024.08.30"]
[EventType "swiss"]
[EventCountry "USA"]
[SourceTitle "playchess.com"]
[Source "ChessBase"]
[SourceQuality "1"]
[TimeControl "5400+30"]

{[%evp 12,23,14,0,11,0,9,17,27,18,0,4,20,12]} 1. e4 {[%emt 0:13:54]} c6 {[%emt 0:01:17]} 2. Nf3 {[%emt 0:00:20]} d5 {[%emt 0:00:08]} 3. d3 {[%emt 0:00:14]} g6 {[%emt 0:00:10]} 4. e5 {[%emt 0:01:03]} c5 {[%emt 0:00:46]} 5. c3 {[%emt 0:00:14]} Nc6 {[%emt 0:00:29]} 6. d4 {[%emt 0:03:34]} cxd4 {[%emt 0:03:13]} 7. cxd4 {[%emt 0:00:07]} Bg4 {[%emt 0:00:05]} 8. Nbd2 {[%emt 0:02:08]} e6 {[%emt 0:02:41]} 9. h3 {[%emt 0:02:28]} Bxf3 {[%emt 0:01:52]} 10. Nxf3 {[%emt 0:00:04]} Bb4+ {[%emt 0:07:52]} 11. Bd2 {[%emt 0:05:12]} Qa5 {[%emt 0:02:09]} 12. a3 {[%emt 0:01:26] An uneventful encounter.   Weighted Error Value: White=0.04 (flawless) /Black=0.04 (flawless) .  OK:         	White=2     	Black=2      Best:        	White=1     	---} 1/2-1/2

[Event "1000 GM Labor Day Super Swiss 2024"]
[Site "San Jose"]
[Date "2024.09.01"]
[Round "3.2"]
[White "Quesada Perez, Yasser"]
[Black "Cordova, Emilio"]
[Result "1/2-1/2"]
[Annotator "TA"]
[ECO "B90"]
[WhiteElo "2581"]
[BlackElo "2519"]
[PlyCount "20"]
[EventDate "2024.08.30"]
[EventType "swiss"]
[EventCountry "USA"]
[SourceTitle "playchess.com"]
[Source "ChessBase"]
[SourceQuality "1"]
[TimeControl "5400+30"]

{[%evp 15,20,0,49,0,17,0,64]} 1. e4 {[%emt 0:02:00]} c5 {[%emt 0:00:06]} 2. Nf3 {[%emt 0:00:12]} d6 {[%emt 0:00:06]} 3. d4 {[%emt 0:00:14]} cxd4 {[%emt 0:00:07]} 4. Nxd4 {[%emt 0:00:06]} Nf6 {[%emt 0:00:07]} 5. Nc3 {[%emt 0:00:09]} a6 {[%emt 0:00:17]} 6. Be3 {[%emt 0:00:21]} Ng4 {[%emt 0:00:11]} 7. Bc1 {[%emt 0:00:12]} Nf6 {[%emt 0:00:06]} 8. Be3 {[%emt 0:00:13]} Ng4 {[%emt 0:00:07]} 9. Bc1 {[%emt 0:00:10]} Nf6 {[%emt 0:00:06]} 10. Be3 {[%emt 0:00:06]} (10. Be2 $11) 10... Ng4 {[%emt 0:00:04] Weighted Error Value: White=0.34/Black=0.00 (flawless) .  Mistake:       	White=1     	---        OK:         	---       	Black=2} 1/2-1/2

[Event "1000 GM Labor Day Super Swiss 2024"]
[Site "San Jose"]
[Date "2024.09.01"]
[Round "3.3"]
[White "Corrales Jimenez, Fidel"]
[Black "Delgado Ramirez, Neuris"]
[Result "1/2-1/2"]
[Annotator "TA"]
[ECO "B52"]
[WhiteElo "2564"]
[BlackElo "2485"]
[PlyCount "21"]
[EventDate "2024.08.30"]
[EventType "swiss"]
[EventCountry "USA"]
[SourceTitle "playchess.com"]
[Source "ChessBase"]
[SourceQuality "1"]
[TimeControl "5400+30"]

{[%evp 16,21,7,0,-2,-6,0,-5]} 1. e4 {[%emt 0:01:05]} c5 {[%emt 0:19:16]} 2. Nf3 {[%emt 0:00:05]} d6 {[%emt 0:00:04]} 3. Bb5+ {[%emt 0:00:05]} Bd7 {[%emt 0:00:05]} 4. Bxd7+ {[%emt 0:00:03]} Qxd7 {[%emt 0:00:08]} 5. O-O {[%emt 0:00:06]} Nf6 {[%emt 0:00:06]} 6. Re1 {[%emt 0:00:07]} Nc6 {[%emt 0:00:06]} 7. c3 {[%emt 0:00:04]} e6 {[%emt 0:00:06]} 8. d4 {[%emt 0:00:02]} cxd4 {[%emt 0:00:08]} 9. cxd4 {[%emt 0:00:03] The position is equal.} d5 {[%emt 0:00:06]} 10. e5 {[%emt 0:00:02]} Ne4 {[%emt 0:00:08]} 11. a3 {[%emt 0:00:03] Not much happened in this game.   OK:         	White=1     	Black=1} 1/2-1/2

[Event "1000 GM Labor Day Super Swiss 2024"]
[Site "San Jose"]
[Date "2024.09.01"]
[Round "3.4"]
[White "Harsha Bharathakoti"]
[Black "Sivakumar, Shaaketh"]
[Result "1/2-1/2"]
[Annotator "TA"]
[ECO "C02"]
[WhiteElo "2550"]
[BlackElo "2307"]
[PlyCount "34"]
[EventDate "2024.08.30"]
[EventType "swiss"]
[EventCountry "USA"]
[SourceTitle "playchess.com"]
[Source "ChessBase"]
[SourceQuality "1"]
[TimeControl "5400+30"]

{[%evp 14,34,0,-14,-28,-40,-32,-40,-21,-53,-28,-39,-33,-41,0,0,-2,-3,-13,-25,-7,-25,-16]} 1. d4 {[%emt 0:02:45]} e6 {[%emt 0:00:22]} 2. e4 {[%emt 0:04:55]} d5 {[%emt 0:00:07]} 3. e5 {[%emt 0:00:04]} c5 {[%emt 0:00:09]} 4. c3 {[%emt 0:00:02]} Nc6 {[%emt 0:00:08]} 5. Nf3 {[%emt 0:00:04]} Qb6 {[%emt 0:00:24]} 6. Be2 {[%emt 0:00:17]} cxd4 {[%emt 0:00:26]} 7. cxd4 {[%emt 0:00:04]} Nh6 {[%emt 0:00:09]} 8. Bxh6 {[%emt 0:00:59] [#] Threatens to win with Bc1.} Qxb2 {[%emt 0:00:48]} 9. Nc3 {[%emt 0:00:24]} Qxc3+ {[%emt 0:04:37]} 10. Bd2 {[%emt 0:00:04]} Qa3 {[%emt 0:00:14] Black is slightly better.} 11. h4 {[%emt 0:00:04]} Bb4 {[%emt 0:01:12]} 12. O-O {[%emt 0:00:56]} Bxd2 {[%emt 0:03:32]} 13. Qxd2 {[%emt 0:00:06]} Qe7 {[%emt 0:00:21]} 14. Rfc1 {[%emt 0:21:28]} Bd7 {[%emt 0:06:16]} 15. Rab1 {[%emt 0:05:47]} Rb8 {[%emt 0:00:50]} 16. Bd3 {[%emt 0:30:21]} O-O {[%emt 0:01:50]} 17. Rb3 {[%emt 0:23:05]} f5 {[%emt 0:03:52] Weighted Error Value: White=0.11 (very precise) /Black=0.07 (flawless) .  Inaccurate:     	White=1     	Black=1      OK:         	White=1     	Black=4      Best:        	White=1     	---} 1/2-1/2

[Event "1000 GM Labor Day Super Swiss 2024"]
[Site "San Jose"]
[Date "2024.09.01"]
[Round "3.5"]
[White "Chen, Ryo"]
[Black "Mikaelyan, Arman"]
[Result "1/2-1/2"]
[Annotator "TA"]
[ECO "B89"]
[WhiteElo "2408"]
[BlackElo "2529"]
[PlyCount "146"]
[EventDate "2024.08.30"]
[EventType "swiss"]
[EventCountry "USA"]
[SourceTitle "playchess.com"]
[Source "ChessBase"]
[SourceQuality "1"]
[TimeControl "5400+30"]

{[%evp 59,146,118,140,152,167,162,177,178,180,191,173,141,200,129,149,137,170,177,187,173,193,181,333,318,308,293,288,66,77,8,8,14,15,0,0,0,36,0,10,0,0,0,0,0,0,0,0,0,0,0,20,22,65,0,0,0,8,8,8,8,8,0,0,-8,-8,-68,0,0,0,0,0,0,0,0,0,0,0,0,0,0,0,0,0,0,0,0,0,0,0]} 1. e4 {[%emt 0:04:13]} c5 {[%emt 0:05:44]} 2. Nf3 {[%emt 0:00:08]} d6 {[%emt 0:00:07]} 3. d4 {[%emt 0:00:05]} cxd4 {[%emt 0:00:06]} 4. Nxd4 {[%emt 0:00:03]} Nf6 {[%emt 0:00:17]} 5. Nc3 {[%emt 0:00:05]} Nc6 {[%emt 0:01:10]} 6. Bc4 {[%emt 0:00:21]} e6 {[%emt 0:01:28]} 7. Be3 {[%emt 0:00:17]} a6 {[%emt 0:00:47]} 8. Qe2 {[%emt 0:02:31]} Ne5 {[%emt 0:08:12]} 9. Bb3 {[%emt 0:01:12]} Nfg4 {[%emt 0:10:08]} 10. Bd2 {[%emt 0:29:20]} Qb6 {[%emt 0:04:34]} 11. Ba4+ {[%emt 0:57:45]} Bd7 {[%emt 0:09:19]} 12. Bxd7+ {[%emt 0:00:00]} Kxd7 {[%emt 0:01:11]} 13. Nb3 {[%emt 0:00:00]} Nf6 {[%emt 0:03:09]} 14. f4 {[%emt 0:00:00]} Nc6 {[%emt 0:05:11]} 15. e5 {[%emt 0:00:00]} Nd5 {[%emt 0:00:12]} 16. Nxd5 {[%emt 0:00:00]} exd5 {[%emt 0:46:55]} 17. O-O-O {[%emt 0:00:00]} Re8 {[%emt 0:00:00]} 18. Be3 {[%emt 0:00:00]} Qb5 {[%emt 0:00:00]} 19. Qxb5 {[%emt 0:00:00]} axb5 {[%emt 0:00:00]} 20. Rxd5 {[%emt 0:00:00]} Kc8 {[%emt 0:00:00]} 21. Rxb5 {[%emt 0:00:00]} dxe5 {[%emt 0:00:00]} 22. fxe5 {[%emt 0:00:00]} Rxe5 {[%emt 0:00:00]} 23. Rxe5 {[%emt 0:00:00]} Nxe5 {[%emt 0:00:00]} 24. Bf4 {[%emt 0:00:00]} Ng6 {[%emt 0:00:00]} 25. Rf1 {[%emt 0:00:00]} h5 {[%emt 0:00:00]} 26. Be3 {[%emt 0:00:00]} f6 {[%emt 0:00:00]} 27. Bc5 {[%emt 0:00:00]} Bxc5 {[%emt 0:00:00]} 28. Nxc5 {[%emt 0:00:00]} Re8 {[%emt 0:00:00]} 29. Nd3 {[%emt 0:00:00]} Kd7 {[%emt 0:00:00]} 30. Kd2 {[%emt 0:00:00]} h4 {[%emt 0:00:00]} 31. Re1 {[%emt 0:00:00]} Ra8 {[%emt 0:00:00]} 32. Re4 {[%emt 0:00:00]} Nf8 {[%emt 0:00:00]} 33. a4 {[%emt 0:00:00]} g5 {[%emt 0:00:00]} 34. b4 {[%emt 0:00:00]} b6 {[%emt 0:00:00]} 35. Nb2 {[%emt 0:00:00]} Kc6 {[%emt 0:00:00]} (35... Ng6 $16 36. Kc3 Ne5) 36. c4 {[%emt 0:00:00]} Kd6 {[%emt 0:00:00]} 37. Rd4+ {[%emt 0:00:00]} Ke7 {[%emt 0:00:00]} 38. Rd5 {[%emt 0:00:00]} Ne6 {[%emt 0:00:00]} 39. Rb5 {[%emt 0:00:00]} h3 {[%emt 0:00:00]} 40. gxh3 {[%emt 0:00:00]} (40. Rxb6 $2 hxg2 41. Rb7+ Kf8 $19) 40... Rh8 $2 {[%emt 0:00:00]} (40... Rd8+ {was worth a try.} 41. Kc1 Rd6) 41. Rxb6 $18 {[%emt 0:00:00]} Rxh3 {[%emt 0:00:00] [#]} 42. Rb7+ $1 {[%emt 0:00:00]} Kd8 {[%emt 0:00:00]} 43. Nd3 $2 {[%emt 0:00:46]} (43. a5 $18 {Hoping for a6.} Rxh2+ 44. Kc1 (44. Kc3 Rh3+ 45. Kd2 Ra3 $16)) 43... g4 $1 $14 {[%emt 0:00:00]} 44. Rb6 {[%emt 0:09:16]} (44. b5 $16 {Threatens to win with Rb8+.} Rxh2+ (44... Rxd3+ $2 45. Kxd3 Nc5+ 46. Ke3 $18) 45. Kc3) 44... Rxh2+ $11 {[%emt 0:00:00]} 45. Ke3 {[%emt 0:00:30]} Rh3+ {[%emt 0:00:00]} 46. Ke4 {[%emt 0:02:16]} Ng5+ {[%emt 0:01:29]} 47. Kd4 {[%emt 0:01:20]} Rf3 {[%emt 0:05:02]} 48. Rb8+ {[%emt 0:03:18]} Ke7 {[%emt 0:03:28]} 49. Rb7+ {[%emt 0:00:02]} Ke6 {[%emt 0:01:17]} 50. Ne1 {[%emt 0:01:09]} (50. c5 $5 g3 $8 51. Ne1 Rf4+ 52. Ke3 $11) 50... Rf1 {[%emt 0:00:42]} 51. Ng2 {[%emt 0:00:40]} Rf2 {[%emt 0:00:55]} 52. Rb6+ {[%emt 0:00:39]} Kd7 {[%emt 0:01:00]} 53. Nh4 {[%emt 0:00:14]} g3 {[%emt 0:00:36]} 54. Ke3 $1 {[%emt 0:01:20]} f5 {[%emt 0:02:24]} 55. Rf6 {[%emt 0:00:00]} Nh3 {[%emt 0:01:00]} 56. a5 {[%emt 0:00:01]} (56. Nxf5 g2 57. Rg6 Ra2 58. Rg7+ Ke6 $19) (56. Rxf5 $2 Rxf5 57. Kd3 (57. Nxf5 $2 g2 $19) 57... Rf4 $19) (56. Rg6 $14) 56... f4+ $11 {[%emt 0:00:11]} 57. Kd3 {[%emt 0:00:32]} g2 {[%emt 0:01:16]} 58. Nxg2 $1 {[%emt 0:00:24]} Rxg2 {[%emt 0:00:04]} 59. a6 {[%emt 0:00:22]} Ra2 {[%emt 0:00:19]} 60. Rh6 {[%emt 0:00:53]} Ng5 {[%emt 0:00:30]} 61. b5 {[%emt 0:00:31]} f3 {[%emt 0:01:13]} 62. Rf6 {[%emt 0:00:13]} (62. Kd4 $11) 62... Ne6 {[%emt 0:00:28]} ({Black should play} 62... Ke7 $15 63. Rf4 f2) 63. Kc3 {[%emt 0:00:46]} (63. Rxf3 $2 {too greedy.} Ra3+ 64. Ke4 Ng5+ 65. Kd5 Nxf3 $19) 63... Nc5 {[%emt 0:00:42]} 64. Kb4 {[%emt 0:00:37]} Nd3+ {[%emt 0:00:25]} 65. Kb3 {[%emt 0:00:19]} Nc1+ {[%emt 0:00:20]} 66. Kc3 {[%emt 0:00:14]} f2 {[%emt 0:00:23]} 67. a7 {[%emt 0:00:22]} Rxa7 {[%emt 0:00:33]} 68. Rxf2 {[%emt 0:00:06]} Ra3+ {[%emt 0:00:30]} 69. Kd4 {[%emt 0:00:27]} Rd3+ {[%emt 0:00:13]} 70. Kc5 {[%emt 0:00:13]} Nb3+ {[%emt 0:00:06]} 71. Kb4 {[%emt 0:00:05]} Nd4 {[%emt 0:00:18]} 72. Rh2 {[%emt 0:00:51]} Rd1 {[%emt 0:00:46]} 73. Rh7+ {[%emt 0:00:15]} Kc8 {[%emt 0:00:09]} 1/2-1/2

[Event "1000 GM Labor Day Super Swiss 2024"]
[Site "San Jose"]
[Date "2024.09.01"]
[Round "3.6"]
[White "Koustav Chatterjee"]
[Black "Garcia Guerrero, Isaac Antonio"]
[Result "1/2-1/2"]
[Annotator "TA"]
[ECO "D32"]
[WhiteElo "2524"]
[BlackElo "2291"]
[PlyCount "56"]
[EventDate "2024.08.30"]
[EventType "swiss"]
[EventCountry "USA"]
[SourceTitle "playchess.com"]
[Source "ChessBase"]
[SourceQuality "1"]
[TimeControl "5400+30"]

{[%evp 16,56,18,12,17,0,33,26,23,29,24,25,24,34,19,19,17,16,28,27,23,20,19,20,19,17,18,16,22,14,26,0,13,0,0,-37,-28,-45,0,-79,0,0,0]} 1. Nf3 {[%emt 0:04:38]} d5 {[%emt 0:00:11]} 2. e3 {[%emt 0:00:18]} Nf6 {[%emt 0:00:29]} 3. c4 {[%emt 0:00:05]} e6 {[%emt 0:00:12]} 4. Nc3 {[%emt 0:00:05]} c5 {[%emt 0:00:44]} 5. cxd5 {[%emt 0:00:05]} exd5 {[%emt 0:00:10]} 6. d4 {[%emt 0:00:05]} Nc6 {[%emt 0:00:25]} 7. Bb5 {[%emt 0:00:04]} cxd4 {[%emt 0:00:18]} 8. Nxd4 {[%emt 0:00:05]} Bd7 {[%emt 0:00:22]} 9. O-O {[%emt 0:00:06]} Bd6 {[%emt 0:00:17]} 10. Nf3 {[%emt 0:00:06][%cal Oe3e4]} a6 {[%emt 0:00:56]} 11. Bxc6 {[%emt 0:01:59]} Bxc6 {[%emt 0:00:56] White has an edge.} 12. b3 {[%emt 0:00:07]} O-O {[%emt 0:00:23]} 13. Bb2 {[%emt 0:00:05]} Qe7 {[%emt 0:00:49]} 14. Ne2 {[%emt 0:05:42]} Ne4 {[%emt 0:06:23]} 15. Ng3 {[%emt 0:05:20]} Nxg3 {[%emt 0:04:30]} 16. hxg3 {[%emt 0:00:18]} Rad8 {[%emt 0:00:41]} 17. Rc1 {[%emt 0:00:51]} Rfe8 {[%emt 0:02:29]} 18. Qd4 {[%emt 0:06:17][%csl Gb2][%cal Rd4g7] [#]} f6 {[%emt 0:03:01]} 19. Rfd1 {[%emt 0:00:49]} Qe4 {[%emt 0:03:11]} 20. Qb6 {[%emt 0:16:26]} Be5 {[%emt 0:10:29]} 21. Nd4 {[%emt 0:05:53]} Bxd4 {[%emt 0:06:31]} 22. Bxd4 {[%emt 0:00:40]} Rc8 {[%emt 0:02:13]} 23. Rc5 {[%emt 0:01:55]} h5 {[%emt 0:04:02]} 24. a4 {[%emt 0:02:19]} h4 {[%emt 0:05:01]} 25. gxh4 {[%emt 0:02:25]} Qxh4 {[%emt 0:00:27]} 26. Rdc1 {[%emt 0:01:48]} Re4 {[%emt 0:14:40]} 27. R5c2 {[%emt 0:15:40]} (27. Rxc6 $11 Rxc6 (27... bxc6 28. Qxa6 Rce8 29. Qxc6 $16) 28. Rxc6 bxc6 29. Qxa6) 27... Qh5 {[%emt 0:05:51]} (27... Rg4 $17) 28. f4 $1 $11 {[%emt 0:01:58]} Rce8 {[%emt 0:28:49] Weighted Error Value: White=0.13 (very precise) /Black=0.13 (very precise) .  Mistake:       	White=1     	Black=1      Inaccurate:     	White=2     	Black=2      OK:         	White=7     	Black=7      Strong:       	White=1     	---} 1/2-1/2

[Event "1000 GM Labor Day Super Swiss 2024"]
[Site "San Jose"]
[Date "2024.09.01"]
[Round "3.7"]
[White "Schitco, Ivan"]
[Black "Kiewra, Keaton"]
[Result "1-0"]
[Annotator "TA"]
[ECO "A30"]
[WhiteElo "2518"]
[BlackElo "2287"]
[PlyCount "113"]
[EventDate "2024.08.30"]
[EventType "swiss"]
[EventCountry "USA"]
[SourceTitle "playchess.com"]
[Source "ChessBase"]
[SourceQuality "1"]
[TimeControl "5400+30"]

{[%evp 20,113,0,0,12,-16,0,-8,0,-2,46,37,33,28,58,40,37,35,54,47,57,56,54,53,53,53,53,53,53,53,62,53,54,50,62,62,80,80,84,81,81,89,81,81,81,81,83,73,108,108,109,110,131,131,131,131,138,138,138,138,138,138,220,213,255,262,306,304,869,841,881,390,943,859,740,518,1185,1063,1057,1028,661,316,305,359,310,267,29959,29960,29963,29963,29965,29966,29967,29970,29974,29971]} 1. c4 {[%emt 0:00:03]} c5 {[%emt 0:15:21]} 2. Nf3 {[%emt 0:00:16]} Nf6 {[%emt 0:00:06][%cal Bg8f6,Bf6d5,Bd5b4][%mdl 32]} 3. g3 {[%emt 0:00:12]} d5 {[%emt 0:00:25]} 4. cxd5 {[%emt 0:00:33]} Nxd5 {[%emt 0:00:16]} 5. Bg2 {[%emt 0:00:15]} Nc6 {[%emt 0:02:19]} 6. d4 {[%emt 0:00:21]} cxd4 {[%emt 0:04:48]} 7. Nxd4 {[%emt 0:02:12]} Ndb4 {[%emt 0:03:55]} 8. Nxc6 {[%emt 0:00:06]} Qxd1+ {[%emt 0:03:33]} 9. Kxd1 {[%emt 0:00:04]} Nxc6 {[%emt 0:00:06]} 10. Bxc6+ {[%emt 0:00:15]} bxc6 {[%emt 0:00:05]} 11. Be3 {[%emt 0:00:12]} e5 {[%emt 0:01:53]} 12. Kd2 {[%emt 0:02:39][%cal Bd1d2,Bd2e1,Be1f2][%mdl 32]} Bb4+ {[%emt 0:11:41]} 13. Nc3 {[%emt 0:00:26]} Be6 {[%emt 0:00:14] The position is equal.} 14. Rhc1 {[%emt 0:00:31] White is weak on the light squares} O-O-O+ {[%emt 0:00:23]} (14... O-O $11) 15. Ke1 $14 {[%emt 0:01:49][%cal Oa2a3]} Kb7 {[%emt 0:00:06]} 16. f3 {[%emt 0:07:15]} Rd5 {[%emt 0:06:20]} 17. Kf2 {[%emt 0:03:38]} Bxc3 {[%emt 0:00:08]} 18. Rxc3 {[%emt 0:00:03]} Rhd8 {[%emt 0:03:54]} 19. Rac1 {[%emt 0:08:04]} Rd1 {[%emt 0:03:59]} 20. Rxc6 {[%emt 0:01:03]} Rxc1 {[%emt 0:00:11]} 21. Rxc1 {[%emt 0:00:02]} Rc8 {[%emt 0:00:27]} 22. Rxc8 {[%emt 0:05:58]} Kxc8 {[%emt 0:04:17][%mdl 4096] Endgame. KB-KB} 23. b3 {[%emt 0:02:54]} a6 {[%emt 0:05:06]} 24. Bc5 {[%emt 0:01:22]} Kc7 {[%emt 0:00:21]} 25. Bf8 {[%emt 0:00:49]} g6 {[%emt 0:00:09]} 26. Ke3 {[%emt 0:07:51]} Bf5 {[%emt 0:04:31]} 27. g4 {[%emt 0:03:18]} Bb1 {[%emt 0:01:01]} 28. Kd2 {[%emt 0:03:41] Kc1 would now be deadly.} e4 {[%emt 0:00:27]} 29. f4 {[%emt 0:02:15][%cal Bf3f4,Bf4f5][%mdl 32] aiming for Kc1.} e3+ {[%emt 0:00:26]} 30. Kc1 {[%emt 0:03:41]} Be4 {[%emt 0:00:10]} 31. Bc5 {[%emt 0:00:07]} h6 {[%emt 0:10:31]} 32. Bxe3 {[%emt 0:01:23]} Bg2 {[%emt 0:00:57]} 33. f5 {[%emt 0:08:06]} g5 {[%emt 0:07:29][%cal Bg6g5,Bg5g4][%mdl 32]} 34. Bd4 {[%emt 0:03:51]} Bh3 {[%emt 0:04:21]} 35. Bg7 {[%emt 0:00:06]} Bxg4 {[%emt 0:00:07]} 36. Bxh6 {[%emt 0:00:23]} f6 {[%emt 0:00:11][%cal Oc7d6]} 37. Bg7 {[%emt 0:05:08]} Bxf5 {[%emt 0:00:19]} 38. Bxf6 {[%emt 0:00:08]} g4 {[%emt 0:00:03]} 39. Kd2 {[%emt 0:00:57]} Kd6 {[%emt 0:01:28]} 40. a3 {[%emt 0:02:47]} Kd5 {[%emt 0:00:22]} (40... Ke6 $16 {was necessary.} 41. Bc3 Be4) 41. Ke3 $18 {[%emt 0:00:41]} Bc2 {[%emt 0:00:10]} 42. b4 {[%emt 0:00:03]} Bd1 {[%emt 0:00:08]} 43. Kd3 {[%emt 0:00:19]} Bb3 $2 {[%emt 0:03:15] [#]} (43... g3 44. hxg3 Ba4 45. e4+ Kd6) 44. e4+ $1 {[%emt 0:00:12]} Kc6 {[%emt 0:00:34]} 45. Ke3 {[%emt 0:00:49]} (45. Bh4 $142 Kd6 46. Ke3) 45... Kd6 $2 {[%emt 0:01:39]} (45... g3 46. hxg3 Bf7) 46. Bh4 {[%emt 0:01:36]} Kc6 {[%emt 0:01:19]} 47. Kf4 {[%emt 0:00:41]} Be6 {[%emt 0:00:34]} (47... Kd6 $142 48. Kxg4 Ke5) 48. Ke5 {[%emt 0:00:23]} Kd7 {[%emt 0:00:16]} 49. Kf6 {[%emt 0:00:44]} (49. Kf4 Kd6 50. e5+ Kd5 $18) 49... Bb3 {[%emt 0:00:11]} 50. Bf2 {[%emt 0:00:54]} Kd6 {[%emt 0:01:12]} 51. e5+ {[%emt 0:01:06][%cal Be4e5,Be5e6,Be6e7][%mdl 32]} Kd7 {[%emt 0:00:05]} 52. Bc5 {[%emt 0:00:15]} Bc4 $2 {[%emt 0:00:19] [#]} (52... Bc2 $18 53. e6+ Ke8) 53. a4 $1 {[%emt 0:01:12] White mates.} Bb3 {[%emt 0:00:57]} 54. b5 {[%emt 0:00:13]} a5 {[%emt 0:00:27]} 55. b6 {[%emt 0:00:34]} Bxa4 {[%emt 0:00:21]} 56. e6+ {[%emt 0:00:09]} Kc6 {[%emt 0:00:09]} 57. e7 {[%emt 0:00:22] Weighted Error Value: White=0.13 (very precise) /Black=0.16 (very precise) .  Mistake:       	---       	Black=4      Inaccurate:     	White=1     	Black=2      OK:         	White=20    	Black=12     Best:        	White=3     	Black=4      Strong:       	White=2     	---} 1-0

[Event "1000 GM Labor Day Super Swiss 2024"]
[Site "San Jose"]
[Date "2024.09.01"]
[Round "3.8"]
[White "Sathish, Pranav"]
[Black "Hevia Alejano, Carlos Antonio"]
[Result "1/2-1/2"]
[Annotator "TA"]
[ECO "D32"]
[WhiteElo "2337"]
[BlackElo "2414"]
[PlyCount "43"]
[EventDate "2024.08.30"]
[EventType "swiss"]
[EventCountry "USA"]
[SourceTitle "playchess.com"]
[Source "ChessBase"]
[SourceQuality "1"]
[TimeControl "5400+30"]

{[%evp 21,43,24,23,19,20,30,30,34,27,35,37,38,43,35,31,44,34,18,33,16,37,33,54,24]} 1. Nf3 {[%emt 0:00:35]} e6 {[%emt 0:00:38]} 2. b3 {[%emt 0:00:04]} Nf6 {[%emt 0:00:07]} 3. Bb2 {[%emt 0:00:04]} d5 {[%emt 1:31:15]} 4. c4 {[%emt 0:00:06]} Be7 {[%emt 0:00:00]} 5. e3 {[%emt 0:00:13]} O-O {[%emt 0:00:00]} 6. Nc3 {[%emt 0:00:02]} c5 {[%emt 0:00:00]} 7. cxd5 {[%emt 0:00:07]} exd5 {[%emt 0:00:00]} 8. d4 {[%emt 0:00:07]} Nc6 {[%emt 0:00:00]} 9. Be2 {[%emt 0:00:06]} Be6 {[%emt 0:00:00]} 10. dxc5 {[%emt 0:00:41]} Bxc5 {[%emt 0:00:00]} 11. O-O {[%emt 0:00:07]} a6 {[%emt 0:00:00]} 12. Rc1 {[%emt 0:09:48][%cal Oc3d5]} Qe7 {[%emt 0:00:00]} 13. Bd3 {[%emt 0:05:57]} Rad8 {[%emt 0:00:00]} 14. Ne2 {[%emt 0:00:47] White has an edge.} Ba3 {[%emt 0:00:00]} 15. Qc2 {[%emt 0:04:41]} Bg4 {[%emt 0:00:00] [#] Hoping for ...Bxb2.} 16. Ned4 {[%emt 0:04:27]} Bxb2 {[%emt 0:00:00]} 17. Qxb2 {[%emt 0:04:23]} Bxf3 {[%emt 0:00:00]} 18. Nxf3 {[%emt 0:02:57][%cal Od3a6]} Rd6 {[%emt 0:00:00]} 19. Rfd1 {[%emt 0:02:11]} Rfd8 {[%emt 0:00:00]} 20. Nd4 {[%emt 1:03:07]} Nxd4 21. Qxd4 Ne8 {[%emt 0:09:00]} 22. Qc5 {[%emt 0:01:00] Weighted Error Value: White=0.05 (flawless) /Black=0.06 (flawless) .  Inaccurate:     	White=1     	---        OK:         	White=3     	Black=4} 1/2-1/2